bitfinex-derivatives/quotes_BTCF0:USTF0_20250716
["timestamp","ask_amount","ask_price","bid_price","bid_amount"]
[1752678452142,0.00024,119650.0,119640.0,1.34173786]
[1752678453039,0.01856809,119650.0,119640.0,1.34173786]
[1752678453442,0.18568069,119650.0,119640.0,0.11885503]
[1752678453738,0.00024,119680.0,119660.0,0.00454]
[1752678453940,0.2261172,119700.0,119680.0,0.1716054]
[1752678454144,0.0172985,119700.0,119690.0,0.1715967]
[1752678454642,0.1843413,119700.0,119690.0,0.1715967]
[1752678455342,0.1670707,119680.0,119670.0,0.02330061]
[1752678455537,0.1670707,119680.0,119670.0,0.18038521]
[1752678455741,0.1670635,119690.0,119680.0,0.1670707]
[1752678456038,0.0417663,119690.0,119670.0,0.00876061]
[1752678456249,0.1670707,119680.0,119670.0,0.01330061]
[1752678456439,0.1670707,119680.0,119670.0,0.00876061]
[1752678456440,0.60144703,119680.0,119670.0,0.00876061]
[1752678456640,1.01856703,119680.0,119670.0,0.00876061]
[1752678456946,1.51856703,119680.0,119670.0,0.00876061]
[1752678457449,1.26856703,119680.0,119670.0,0.00876061]
[1752678458141,0.1670986,119660.0,119640.0,0.13190937]
[1752678458346,0.1671126,119650.0,119640.0,0.30356697]
[1752678459239,0.1671126,119650.0,119640.0,0.26178547]
[1752678459439,0.1671126,119650.0,119640.0,0.05288717]
[1752678459646,0.1671126,119650.0,119640.0,0.22001377]
[1752678459844,0.76868893,119650.0,119640.0,0.04834717]
[1752678460739,1.26868893,119650.0,119640.0,0.04834717]
[1752678461146,1.4663326,119650.0,119640.0,0.1971266]
[1752678461351,1.2987726,119650.0,119640.0,0.1971266]
[1752678461738,1.2987726,119650.0,119640.0,0.03]
[1752678461941,0.1671405,119630.0,119620.0,0.2507174]
[1752678462138,0.1616805,119630.0,119620.0,0.2407174]
[1752678463043,0.2089198,119640.0,119630.0,0.1716805]
[1752678463246,0.8353598,119640.0,119630.0,0.1716805]
[1752678464235,0.2089198,119640.0,119630.0,0.1716805]
[1752678464845,1.3348398,119640.0,119630.0,0.1716805]
[1752678465037,1.3393798,119640.0,119630.0,0.1671405]
[1752678465548,0.1671405,119630.0,119620.0,0.2407176]
[1752678465761,0.1671405,119630.0,119620.0,0.2034792]
[1752678466044,0.1671405,119630.0,119620.0,0.1716908]
[1752678466250,0.1671405,119630.0,119620.0,0.00454]
[1752678466556,0.19000879,119630.0,119620.0,0.00454]
[1752678466750,0.19004879,119630.0,119620.0,0.03454]
[1752678467050,0.18550879,119630.0,119620.0,0.2016945]
[1752678467647,0.18550879,119630.0,119620.0,0.63153083]
[1752678467648,0.01836829,119630.0,119620.0,0.63153083]
[1752678467847,0.01836829,119630.0,119620.0,1.27645433]
[1752678468042,4e-05,119630.0,119620.0,1.27645433]
[1752678468551,4e-05,119630.0,119620.0,0.220658]
[1752678468744,0.0183539,119630.0,119620.0,1.27645433]
[1752678469146,0.0183539,119630.0,119620.0,0.846578]
[1752678469939,0.0183539,119630.0,119620.0,1.44360633]
[1752678470249,0.00836918,119630.0,119620.0,1.44360633]
[1752678470547,4e-05,119650.0,119640.0,0.1716665]
[1752678470753,0.00454,119670.0,119660.0,0.1670986]
[1752678470946,0.05978004,119680.0,119670.0,0.1670847]
[1752678471248,0.22705074,119680.0,119670.0,0.1670847]
[1752678471843,0.05998004,119680.0,119670.0,0.1670847]
[1752678472052,0.00024,119680.0,119670.0,0.7930047]
[1752678472246,0.00024,119680.0,119670.0,1.22735103]
[1752678472547,0.00024,119680.0,119670.0,1.24560946]
[1752678472756,0.1672028,119700.0,119690.0,0.1715667]
[1752678473047,0.06015178,119700.0,119690.0,1.31219583]
[1752678473256,0.00016,119700.0,119690.0,1.31219583]
[1752678473650,0.1672028,119700.0,119690.0,0.68627583]
[1752678473954,0.1672028,119700.0,119690.0,0.8822795]
[1752678474251,0.00016,119700.0,119690.0,0.8822795]
[1752678474456,0.1672028,119700.0,119690.0,0.2564395]
[1752678474847,0.1672028,119700.0,119690.0,0.8822795]
[1752678475353,0.1672428,119700.0,119690.0,0.2564395]
[1752678475550,0.1672428,119700.0,119690.0,0.8822795]
[1752678475851,0.1672828,119700.0,119690.0,0.8822395]
[1752678476053,0.00028,119700.0,119690.0,0.8822395]
[1752678476241,0.00032,119700.0,119690.0,1.31207583]
[1752678476652,0.00036,119700.0,119690.0,1.31207583]
[1752678476851,0.0004,119700.0,119690.0,1.31207583]
[1752678477046,0.1674428,119700.0,119690.0,1.31207583]
[1752678477243,0.1674428,119700.0,119690.0,0.68627583]
[1752678477445,0.1722428,119700.0,119690.0,0.2519295]
[1752678477649,0.1722428,119700.0,119690.0,0.64434898]
[1752678477853,0.1722428,119700.0,119690.0,0.01862898]
[1752678478045,0.0835314,119690.0,119670.0,0.18533423]
[1752678478356,0.1618707,119680.0,119670.0,0.25887563]
[1752678478656,0.2088243,119690.0,119680.0,0.2505907]
[1752678478852,0.2088243,119690.0,119680.0,0.2133337]
[1752678479156,0.1670707,119680.0,119670.0,0.88906293]
[1752678479357,0.1718707,119680.0,119670.0,0.84278203]
[1752678479545,0.1718707,119680.0,119670.0,0.17533173]
[1752678479747,0.1718707,119680.0,119670.0,0.80094303]
[1752678480349,0.1670707,119680.0,119670.0,1.36059676]
[1752678480549,0.1670707,119680.0,119670.0,0.65145756]
[1752678480748,0.1718707,119680.0,119670.0,0.00825843]
[1752678480956,0.1718707,119680.0,119670.0,0.63385843]
[1752678481157,0.0048,119680.0,119670.0,0.86689413]
[1752678481661,0.0048,119680.0,119670.0,0.24129413]
[1752678481955,0.0048,119680.0,119670.0,0.80090313]
[1752678482358,0.02300055,119680.0,119670.0,0.80090313]
[1752678482561,0.02300055,119680.0,119670.0,0.17534313]
[1752678482860,0.19011125,119680.0,119670.0,0.63381843]
[1752678483157,0.19011125,119680.0,119670.0,0.80090313]
[1752678483555,0.19011125,119680.0,119670.0,0.00825843]
[1752678483757,0.19011125,119680.0,119670.0,0.17534313]
[1752678483961,0.19011125,119680.0,119670.0,0.80086313]
[1752678484465,0.19011125,119680.0,119670.0,0.63377843]
[1752678484653,0.19011125,119680.0,119670.0,0.00825843]
[1752678484854,0.1718986,119660.0,119650.0,0.06709099]
[1752678485457,0.1718986,119660.0,119650.0,0.1671126]
[1752678487057,0.0170764,119690.0,119680.0,0.1715807]
[1752678487261,0.0004,119700.0,119690.0,0.1670567]
[1752678487465,0.01830546,119700.0,119690.0,0.1715667]
[1752678487858,0.0004,119700.0,119690.0,0.1715667]
[1752678488059,0.01498644,119710.0,119700.0,0.1670428]
[1752678488266,0.01498644,119710.0,119700.0,1.22682913]
[1752678488459,4e-05,119710.0,119700.0,1.24556508]
[1752678488760,4e-05,119720.0,119710.0,0.1670288]
[1752678488956,4e-05,119720.0,119710.0,0.1715388]
[1752678489256,4e-05,119720.0,119710.0,0.7970188]
[1752678489451,0.00024,119720.0,119710.0,0.1715388]
[1752678489665,0.1672549,119720.0,119710.0,0.1715388]
[1752678489861,0.1672549,119720.0,119710.0,0.7969788]
[1752678489862,0.00504,119720.0,119710.0,0.7969788]
[1752678490062,0.1720549,119720.0,119710.0,0.7969788]
[1752678490261,0.1720549,119720.0,119710.0,0.62995]
[1752678490765,0.1670288,119710.0,119700.0,0.0577668]
[1752678490963,0.1720288,119710.0,119700.0,0.0530568]
[1752678491155,0.1720288,119710.0,119700.0,0.01873595]
[1752678491761,0.1670428,119700.0,119690.0,0.0002]
[1752678491965,0.1670567,119690.0,119680.0,0.03446822]
[1752678492260,0.1720567,119690.0,119680.0,0.03426822]
[1752678492464,0.1670707,119680.0,119670.0,0.0002]
[1752678492670,0.1670707,119680.0,119660.0,0.274276]
[1752678492671,0.1670846,119670.0,119660.0,0.274276]
[1752678492867,0.1672846,119670.0,119660.0,0.899396]
[1752678493570,0.1672846,119670.0,119660.0,0.8158101]
[1752678493971,0.0002,119670.0,119660.0,0.1905301]
[1752678494184,0.0002,119670.0,119660.0,1.24564643]
[1752678494589,0.2135954,119710.0,119660.0,1.62654138]
[1752678494887,0.2135954,119710.0,119700.0,0.1670428]
[1752678495082,0.1670428,119700.0,119690.0,0.94050895]
[1752678495282,0.1670428,119700.0,119690.0,0.89874595]
[1752678495484,0.1718428,119700.0,119690.0,0.89874595]
[1752678496784,0.1718428,119700.0,119690.0,0.27346595]
[1752678497087,0.1718428,119700.0,119690.0,0.01838855]
[1752678497286,0.1718428,119700.0,119690.0,0.18544525]
[1752678497785,0.1718661,119720.0,119710.0,0.1670289]
[1752678498086,0.1718661,119720.0,119710.0,0.1715389]
[1752678498781,0.1670289,119710.0,119700.0,0.2968171]
[1752678498977,0.0883505,119720.0,119700.0,0.129786]
[1752678499181,0.2136189,119720.0,119710.0,0.1670289]
[1752678499688,0.18457503,119720.0,119710.0,0.1715389]
[1752678500084,0.01756003,119720.0,119710.0,0.1715389]
[1752678500286,0.167055,119720.0,119710.0,0.1715389]
[1752678500781,4e-05,119720.0,119710.0,0.1715389]
[1752678500986,4e-05,119720.0,119710.0,0.60137523]
[1752678502385,0.167055,119720.0,119710.0,0.60137523]
[1752678502583,0.167055,119720.0,119710.0,0.86360796]
[1752678503488,0.16820273,119720.0,119710.0,0.86360796]
[1752678503991,0.16824273,119720.0,119710.0,0.86360796]
[1752678504384,0.16828273,119720.0,119710.0,0.23864796]
[1752678504583,0.16828273,119720.0,119700.0,0.1715627]
[1752678504584,0.2505625,119710.0,119700.0,0.1715627]
[1752678504793,0.2505625,119710.0,119700.0,0.7964427]
[1752678504994,0.2088023,119710.0,119700.0,0.7964427]
[1752678505191,0.25652023,119720.0,119710.0,0.1670289]
[1752678505387,0.21013343,119720.0,119710.0,0.60138523]
[1752678505588,0.00134773,119720.0,119710.0,0.60138523]
[1752678505989,0.16836273,119720.0,119710.0,0.60138523]
[1752678506291,0.00134773,119720.0,119710.0,0.60138523]
[1752678506689,0.01720797,119730.0,119710.0,0.50071053]
[1752678506893,4e-05,119730.0,119720.0,1.22617133]
[1752678510098,0.00012,119730.0,119720.0,1.22617133]
[1752678510492,4e-05,119730.0,119720.0,0.796335]
[1752678510801,0.00012,119730.0,119720.0,1.22617133]
[1752678511101,0.00016,119730.0,119720.0,1.22617133]
[1752678511394,0.00016,119740.0,119730.0,0.171521]
[1752678511696,0.213467,119780.0,119760.0,0.00452]
[1752678511900,0.27269433,119780.0,119770.0,0.1669452]
[1752678512099,0.27269433,119780.0,119770.0,0.18553929]
[1752678512301,0.43967033,119780.0,119770.0,0.18553929]
[1752678512496,0.27269433,119780.0,119770.0,0.18553929]
[1752678512792,0.27269433,119780.0,119770.0,0.01859409]
[1752678513697,0.27269433,119780.0,119770.0,0.18553929]
[1752678514092,0.02228253,119780.0,119770.0,0.19005929]
[1752678514297,0.0002,119780.0,119770.0,0.61989562]
[1752678514501,0.00024,119780.0,119770.0,0.61989562]
[1752678514699,0.00028,119780.0,119770.0,0.61989562]
[1752678515000,0.00032,119780.0,119770.0,0.61989562]
[1752678515197,0.00036,119780.0,119770.0,0.61989562]
[1752678515396,0.0004,119780.0,119770.0,0.61989562]
[1752678515803,0.00044,119780.0,119770.0,2.11989562]
[1752678516001,0.00044,119780.0,119770.0,2.74417562]
[1752678516002,0.00048,119780.0,119770.0,2.74417562]
[1752678516399,0.1674112,119780.0,119770.0,1.69005929]
[1752678516597,0.1720412,119780.0,119770.0,0.83546128]
[1752678516897,0.1720412,119780.0,119770.0,0.83094128]
[1752678517094,0.1720412,119780.0,119770.0,0.03975608]
[1752678517899,0.78633144,119780.0,119770.0,0.01859409]
[1752678518205,0.35649511,119780.0,119770.0,0.01859409]
[1752678518600,0.35649511,119780.0,119770.0,0.03961302]
[1752678519502,0.3390172,119780.0,119770.0,0.01859409]
[1752678519907,0.3390172,119780.0,119770.0,1.24393562]
[1752678519908,0.1720413,119780.0,119770.0,1.24393562]
[1752678520605,0.1720413,119780.0,119770.0,0.80953929]
[1752678520804,0.00511,119780.0,119770.0,1.24389562]
[1752678521003,0.1674113,119780.0,119770.0,0.61989562]
[1752678521203,0.1674113,119780.0,119770.0,1.24385562]
[1752678521811,0.1674113,119780.0,119770.0,0.18553929]
[1752678521812,0.1720413,119780.0,119770.0,0.18553929]
[1752678522101,0.1720413,119780.0,119770.0,0.01859409]
[1752678523608,0.1720413,119780.0,119770.0,0.18553929]
[1752678523803,0.1720413,119780.0,119770.0,1.23921562]
[1752678524003,0.1720413,119780.0,119770.0,1.24373562]
[1752678524004,0.00048,119780.0,119770.0,1.24373562]
[1752678524305,0.00048,119780.0,119770.0,1.31106863]
[1752678525403,0.1715281,119810.0,119790.0,0.1297017]
[1752678525605,0.1669434,119800.0,119790.0,0.8368719]
[1752678525905,0.18908879,119800.0,119790.0,0.8323519]
[1752678526106,0.18912879,119800.0,119790.0,0.8323519]
[1752678526307,0.18912879,119800.0,119790.0,0.8368719]
[1752678526308,0.18449879,119800.0,119790.0,0.8368719]
[1752678526608,0.01759539,119800.0,119790.0,0.8368719]
[1752678527005,0.18453879,119800.0,119790.0,1.26670823]
[1752678527309,0.18457879,119800.0,119790.0,1.26670823]
[1752678527504,0.18461879,119800.0,119790.0,0.8368719]
[1752678527706,0.01775539,119800.0,119780.0,0.72195453]
[1752678527905,0.1715473,119790.0,119780.0,0.00452]
[1752678528206,0.18901435,119790.0,119780.0,0.62828]
[1752678528406,0.1715473,119790.0,119780.0,1.22504763]
[1752678528711,0.1715473,119790.0,119780.0,0.60148763]
[1752678528914,0.18901433,119790.0,119780.0,0.7951313]
[1752678529810,0.1715473,119790.0,119780.0,0.7951313]
[1752678530303,0.1715473,119790.0,119780.0,0.60148763]
[1752678530509,0.1715473,119790.0,119780.0,0.7950513]
[1752678530909,0.1715473,119790.0,119780.0,0.7950113]
[1752678531603,0.1715473,119790.0,119780.0,0.1716513]
[1752678531804,0.1715473,119790.0,119780.0,0.7950113]
[1752678532006,0.1715473,119790.0,119780.0,0.0002]
[1752678532207,0.18902898,119790.0,119780.0,0.0002]
[1752678532509,0.20626141,119790.0,119780.0,0.0002]
[1752678533411,0.37322941,119790.0,119780.0,0.0002]
[1752678534301,0.35574773,119790.0,119780.0,0.0002]
[1752678535317,0.18877973,119790.0,119780.0,0.1671313]
[1752678535609,0.18877973,119790.0,119780.0,0.0002]
[1752678536006,0.18877973,119790.0,119780.0,0.1671313]
[1752678536512,0.18877973,119790.0,119780.0,0.1718313]
[1752678537012,0.18877973,119790.0,119780.0,0.70679629]
[1752678537401,0.18877973,119790.0,119780.0,0.0002]
[1752678537609,0.72383542,119790.0,119770.0,0.01859409]
[1752678537912,0.1719113,119780.0,119770.0,0.00859409]
[1752678538406,0.70687629,119780.0,119770.0,0.00859409]
[1752678538607,0.1719113,119780.0,119770.0,0.00859409]
[1752678538812,0.70687629,119780.0,119770.0,0.00859409]
[1752678539010,0.70687629,119780.0,119770.0,0.17553929]
[1752678539217,0.1719113,119780.0,119770.0,0.00859409]
[1752678540418,0.18944871,119780.0,119770.0,0.00859409]
[1752678540610,0.7244537,119780.0,119770.0,0.00859409]
[1752678540807,0.1719252,119770.0,119760.0,0.02056662]
[1752678541010,0.2971665,119760.0,119750.0,0.01866894]
[1752678541313,0.31470391,119760.0,119750.0,0.01866894]
[1752678541509,0.27296121,119760.0,119750.0,0.01866894]
[1752678541714,0.27296121,119760.0,119750.0,0.19034204]
[1752678541914,0.01753741,119760.0,119750.0,0.61966832]
[1752678542116,0.18449651,119760.0,119750.0,0.31556634]
[1752678542314,0.18449651,119760.0,119750.0,0.27382324]
[1752678542918,0.18453651,119760.0,119750.0,0.27382324]
[1752678543417,0.18461651,119760.0,119750.0,0.27382324]
[1752678543617,0.18465651,119760.0,119750.0,0.27382324]
[1752678544117,0.18465651,119760.0,119750.0,0.70314952]
[1752678544318,0.18465651,119760.0,119750.0,0.19034204]
[1752678544519,0.18465651,119760.0,119750.0,0.02336894]
[1752678544712,0.18963651,119760.0,119750.0,0.02336894]
[1752678545019,0.18963651,119760.0,119750.0,0.19034204]
[1752678545313,0.18465651,119760.0,119750.0,0.19034204]
[1752678545517,0.18465651,119760.0,119750.0,0.61966832]
[1752678545814,0.00016,119760.0,119750.0,0.61966832]
[1752678546714,0.00016,119780.0,119770.0,0.1669452]
[1752678546915,0.00016,119780.0,119770.0,1.29098845]
[1752678548314,0.00012,119790.0,119780.0,0.1669312]
[1752678548622,0.00012,119790.0,119780.0,0.61976116]
[1752678551031,0.1670373,119790.0,119780.0,0.61976116]
[1752678551323,0.1670373,119790.0,119780.0,0.81267488]
[1752678551623,0.1720173,119790.0,119780.0,0.01880368]
[1752678551822,0.5889853,119790.0,119780.0,0.01880368]
[1752678552015,0.60650099,119790.0,119780.0,0.01880368]
[1752678553023,0.1669452,119770.0,119760.0,0.1669475]
[1752678553225,0.1719252,119770.0,119760.0,0.1669475]
[1752678553615,0.1719252,119770.0,119750.0,0.64070894]
[1752678553616,0.1719391,119760.0,119750.0,0.64070894]
[1752678553815,0.1719391,119760.0,119750.0,0.01866894]
[1752678554916,0.78579228,119760.0,119750.0,4e-08]
[1752678555119,0.78599227,119760.0,119750.0,4e-08]
[1752678555415,0.1669731,119750.0,119740.0,0.0002]
[1752678555614,0.1669731,119750.0,119730.0,0.23007995]
[1752678555615,0.171967,119740.0,119730.0,0.02153545]
[1752678555820,0.172167,119740.0,119730.0,0.18833635]
[1752678556018,0.172167,119740.0,119720.0,0.1255381]
[1752678556019,0.1670009,119730.0,119720.0,0.2925415]
[1752678556215,0.1721809,119730.0,119720.0,0.2970415]
[1752678557014,0.00518,119730.0,119720.0,0.2970415]
[1752678557214,0.1721809,119730.0,119720.0,8.02e-05]
[1752678557419,0.1719949,119720.0,119710.0,0.34055167]
[1752678557616,0.0002,119720.0,119710.0,0.34035167]
[1752678557818,0.1672149,119720.0,119710.0,0.79111855]
[1752678558428,0.0002,119720.0,119710.0,0.79111855]
[1752678558819,0.0002,119720.0,119710.0,1.41299855]
[1752678561724,0.1672149,119720.0,119710.0,1.41283855]
[1752678562023,0.0002,119720.0,119710.0,1.37108155]
[1752678562420,0.1672149,119720.0,119710.0,1.37108155]
[1752678562828,0.1672149,119720.0,119710.0,0.74936155]
[1752678563030,0.1672149,119720.0,119710.0,1.47727919]
[1752678563334,0.0002,119720.0,119710.0,1.47727919]
[1752678563628,0.1672149,119720.0,119710.0,0.85559919]
[1752678563928,0.1672149,119720.0,119710.0,1.47723919]
[1752678564128,0.0002,119720.0,119710.0,1.47723919]
[1752678565025,0.1672149,119720.0,119710.0,1.47723919]
[1752678565323,0.0002,119720.0,119710.0,1.47723919]
[1752678565530,0.1672149,119720.0,119710.0,1.47723919]
[1752678565829,0.0002,119720.0,119710.0,1.47723919]
[1752678567030,0.2553156,119750.0,119740.0,0.00458]
[1752678567328,0.2553156,119750.0,119740.0,0.54014392]
[1752678567629,0.2553156,119750.0,119740.0,0.00458]
[1752678568131,0.166987,119740.0,119730.0,1.32857882]
[1752678568333,0.166987,119740.0,119730.0,1.41207272]
[1752678568624,0.166987,119740.0,119730.0,1.37032422]
[1752678568828,0.166987,119740.0,119730.0,1.45374052]
[1752678569029,0.2135612,119750.0,119740.0,0.166987]
[1752678569234,0.1718166,119750.0,119740.0,0.166987]
[1752678569430,0.00484,119750.0,119730.0,1.32391902]
[1752678569631,0.2552905,119760.0,119750.0,0.00458]
[1752678570733,0.2552905,119760.0,119750.0,0.171553]
[1752678571540,0.1718078,119760.0,119750.0,0.171553]
[1752678571833,0.1718078,119760.0,119750.0,0.00458]
[1752678572137,0.166973,119750.0,119740.0,0.1669761]
[1752678572435,0.166973,119750.0,119740.0,0.7926761]
[1752678572836,0.166973,119750.0,119740.0,0.1715561]
[1752678573032,0.166973,119750.0,119740.0,0.7925961]
[1752678573232,0.166973,119750.0,119740.0,0.1715561]
[1752678573436,0.166973,119750.0,119740.0,0.7925961]
[1752678573736,0.171813,119750.0,119740.0,0.7925961]
[1752678574537,0.171813,119750.0,119740.0,0.00458]
[1752678574734,0.171813,119750.0,119740.0,0.792527]
[1752678575042,0.171813,119750.0,119740.0,1.32809092]
[1752678576235,0.171813,119750.0,119740.0,0.787827]
[1752678576437,0.166987,119740.0,119730.0,0.31506288]
[1752678576633,0.171827,119740.0,119730.0,0.18981668]
[1752678576832,0.171827,119740.0,119730.0,0.18523668]
[1752678577741,0.171827,119740.0,119730.0,0.18524788]
[1752678578341,0.171827,119740.0,119730.0,0.7253918]
[1752678579240,0.171827,119740.0,119730.0,0.02282698]
[1752678579439,0.171827,119740.0,119730.0,0.18982788]
[1752678579936,0.171827,119740.0,119730.0,0.7253918]
[1752678580142,0.166987,119740.0,119730.0,0.7253918]
[1752678580737,0.2504686,119750.0,119740.0,0.1669869]
[1752678581044,0.2553086,119750.0,119740.0,0.70713082]
[1752678581441,0.2553086,119750.0,119740.0,0.54014392]
[1752678581741,0.2553086,119750.0,119740.0,0.70713082]
[1752678582441,0.2553086,119750.0,119740.0,0.1715669]
[1752678582636,0.2553086,119750.0,119740.0,0.70713082]
[1752678583343,0.27286071,119750.0,119740.0,0.70713082]
[1752678583836,0.27535071,119750.0,119740.0,0.70957092]
[1752678584031,0.27555071,119750.0,119740.0,0.70957092]
[1752678584241,0.27555071,119750.0,119740.0,0.174007]
[1752678584840,0.27555071,119750.0,119740.0,0.00702]
[1752678585245,0.174317,119740.0,119730.0,0.7280216]
[1752678585560,0.169677,119740.0,119730.0,0.7278216]
[1752678587140,0.167187,119740.0,119730.0,0.7278216]
[1752678587341,0.0002,119740.0,119730.0,0.7278216]
[1752678587541,0.167187,119740.0,119730.0,0.7278216]
[1752678588234,0.167187,119740.0,119730.0,0.19225768]
[1752678588636,0.169677,119740.0,119730.0,0.7278216]
[1752678588840,0.169677,119740.0,119730.0,0.19225768]
[1752678589039,0.169677,119740.0,119730.0,0.7278216]
[1752678589639,0.174517,119740.0,119730.0,0.7278216]
[1752678589839,0.174517,119740.0,119730.0,0.81226788]
[1752678591442,0.174517,119740.0,119730.0,1.3478318]
[1752678591646,0.174517,119740.0,119730.0,0.7278318]
[1752678591843,0.1717109,119730.0,119720.0,0.00254]
[1752678592046,0.1741849,119720.0,119710.0,0.11301649]
[1752678592244,0.70994882,119720.0,119710.0,0.01875977]
[1752678592447,0.1670288,119710.0,119700.0,0.0002]
[1752678592751,0.1717807,119680.0,119670.0,0.02348751]
[1752678593142,0.1717807,119680.0,119670.0,0.00474]
[1752678593339,0.1717807,119680.0,119670.0,0.1718247]
[1752678593552,0.2553101,119690.0,119680.0,0.1718107]
[1752678593853,0.2553101,119690.0,119680.0,0.00474]
[1752678594151,0.2088133,119700.0,119690.0,0.1670567]
[1752678594446,1.1507567,119720.0,119710.0,0.1717688]
[1752678594447,0.1717374,119720.0,119710.0,0.1717688]
[1752678594663,0.27205073,119730.0,119720.0,0.1717549]
[1752678594853,0.03447126,119730.0,119720.0,0.1717549]
[1752678595053,0.03447126,119730.0,119720.0,0.70731882]
[1752678595448,0.01764563,119730.0,119720.0,0.70731882]
[1752678596146,0.18464653,119730.0,119720.0,0.70731882]
[1752678596344,0.01764563,119730.0,119720.0,1.32699882]
[1752678596542,0.18464653,119730.0,119720.0,1.32699882]
[1752678596753,0.18464653,119730.0,119720.0,0.7913949]
[1752678596955,0.18464653,119730.0,119720.0,0.62434]
[1752678597252,0.18934358,119730.0,119720.0,0.00474]
[1752678597450,0.18934358,119730.0,119720.0,0.6243]
[1752678597750,0.1717109,119730.0,119720.0,0.1717549]
[1752678598249,0.1717249,119720.0,119710.0,0.19036929]
[1752678598451,0.1717249,119720.0,119710.0,0.02334269]
[1752678598647,0.70728882,119720.0,119710.0,0.01860269]
[1752678600146,0.1717249,119720.0,119710.0,0.18563149]
[1752678600351,0.1670149,119720.0,119710.0,0.19037149]
[1752678600542,0.2552272,119730.0,119720.0,0.1670149]
[1752678600741,0.51683846,119750.0,119730.0,0.0834974]
[1752678600742,0.05858276,119750.0,119730.0,0.0834974]
[1752678601051,0.05858276,119750.0,119740.0,0.70255092]
[1752678601052,0.01683846,119750.0,119740.0,0.70255092]
[1752678601349,0.2086916,119770.0,119760.0,0.1716991]
[1752678601653,0.18457158,119770.0,119760.0,0.2551752]
[1752678601853,0.18457158,119770.0,119760.0,0.00474]
[1752678602052,0.18457158,119770.0,119740.0,0.1717118]
[1752678602053,0.166971,119750.0,119740.0,0.1717118]
[1752678602245,0.01762638,119750.0,119740.0,0.1717118]
[1752678602448,0.1669586,119760.0,119750.0,0.1669693]
[1752678602647,0.18458663,119760.0,119750.0,0.1717093]
[1752678603955,0.1669586,119760.0,119750.0,0.1717093]
[1752678604162,0.1669586,119760.0,119750.0,0.00474]
[1752678604454,0.1669586,119760.0,119750.0,0.02340429]
[1752678604648,0.1669586,119760.0,119750.0,0.19036359]
[1752678605050,0.1669586,119760.0,119750.0,0.02340429]
[1752678605756,0.1669586,119760.0,119730.0,0.72165101]
[1752678605757,0.1669713,119740.0,119730.0,0.19060001]
[1752678605953,0.2969018,119750.0,119740.0,0.1669713]
[1752678606143,0.2969018,119750.0,119740.0,0.00474]
[1752678607058,0.171681,119740.0,119730.0,0.07246076]
[1752678607249,0.171681,119740.0,119730.0,0.00474]
[1752678607451,0.1669989,119720.0,119710.0,1.79674269]
[1752678607650,0.1669989,119720.0,119710.0,0.80931529]
[1752678607853,0.1669989,119720.0,119710.0,0.64230269]
[1752678608352,0.1669989,119720.0,119710.0,1.17786661]
[1752678608552,0.1669989,119720.0,119710.0,0.80931519]
[1752678608761,0.1669989,119720.0,119710.0,0.64230269]
[1752678609061,0.1717089,119720.0,119710.0,0.0418411]
[1752678609260,0.1719089,119720.0,119710.0,0.0418411]
[1752678609563,0.1671989,119720.0,119710.0,0.0418411]
[1752678609753,0.1671989,119720.0,119710.0,0.2088535]
[1752678609953,0.1671989,119720.0,119710.0,0.74441742]
[1752678610156,0.1671989,119720.0,119710.0,0.2088535]
[1752678610356,0.1671989,119720.0,119710.0,0.74441742]
[1752678610558,0.1671989,119720.0,119710.0,0.2088535]
[1752678610749,0.1671989,119720.0,119710.0,0.0418411]
[1752678610954,0.1671989,119720.0,119710.0,0.81187328]
[1752678611150,0.1671989,119720.0,119710.0,0.19035509]
[1752678611363,0.1671989,119720.0,119710.0,0.72591901]
[1752678611763,0.1671985,119720.0,119710.0,0.74419542]
[1752678611959,0.0002,119720.0,119710.0,0.74419542]
[1752678612453,0.1669567,119750.0,119740.0,0.2087092]
[1752678612658,0.0881795,119770.0,119750.0,0.2086867]
[1752678612864,0.31446858,119770.0,119760.0,0.00474]
[1752678613563,0.1669567,119750.0,119740.0,0.80794779]
[1752678613757,0.2086907,119760.0,119750.0,0.1669567]
[1752678613952,0.1845775,119760.0,119750.0,0.77512389]
[1752678614156,0.1845775,119760.0,119750.0,1.22680719]
[1752678614356,0.1845775,119760.0,119750.0,0.60816719]
[1752678614557,0.1845775,119760.0,119750.0,1.39368389]
[1752678614757,0.1845775,119760.0,119750.0,0.85811997]
[1752678614958,0.18457835,119760.0,119750.0,0.23955997]
[1752678615261,0.18457835,119760.0,119750.0,0.85807997]
[1752678615862,0.18457774,119760.0,119750.0,0.85807997]
[1752678616063,0.1669535,119760.0,119750.0,0.85807997]
[1752678616666,0.1669535,119760.0,119750.0,0.1716967]
[1752678616863,0.1669535,119760.0,119750.0,0.7901367]
[1752678617466,0.2968547,119770.0,119760.0,0.00474]
[1752678619161,0.2968547,119770.0,119760.0,0.1716827]
[1752678619764,0.2968547,119770.0,119760.0,0.00474]
[1752678619968,0.2968547,119770.0,119760.0,0.1716827]
[1752678620267,0.2968547,119770.0,119760.0,0.00474]
[1752678620472,0.2968547,119770.0,119760.0,0.1716827]
[1752678620764,0.2968547,119770.0,119760.0,0.00474]
[1752678621269,0.1714727,119760.0,119750.0,0.831634]
[1752678621470,0.1714727,119760.0,119750.0,0.213434]
[1752678621969,0.1669566,119750.0,119740.0,0.88580357]
[1752678622170,0.1714866,119750.0,119740.0,0.23065117]
[1752678623264,0.1714866,119750.0,119740.0,0.18891077]
[1752678623461,0.1714866,119750.0,119740.0,0.02195087]
[1752678624472,1.32509052,119750.0,119740.0,0.01720087]
[1752678625273,0.1669846,119730.0,119720.0,0.00475]
[1752678625575,0.1715146,119730.0,119720.0,0.00475]
[1752678625770,0.1715146,119730.0,119720.0,0.1717485]
[1752678626071,0.18539611,119750.0,119740.0,0.1717206]
[1752678627876,0.18539611,119750.0,119740.0,0.00475]
[1752678628371,0.18539611,119750.0,119740.0,0.1717206]
[1752678628576,0.18538821,119750.0,119740.0,0.1717206]
[1752678628773,0.18538821,119750.0,119740.0,0.70728452]
[1752678630379,0.01843151,119750.0,119740.0,0.70728452]
[1752678630676,0.01863151,119750.0,119740.0,0.70728452]
[1752678632082,0.18558821,119750.0,119740.0,0.70728452]
[1752678632379,0.18558821,119750.0,119740.0,0.1717206]
[1752678634179,0.18558821,119750.0,119740.0,0.00475]
[1752678634375,0.72568213,119750.0,119740.0,0.00475]
[1752678634583,0.1715006,119740.0,119730.0,0.0002]
[1752678634775,0.1715006,119740.0,119720.0,0.00475]
[1752678634776,0.1715146,119730.0,119720.0,0.0002]
[1752678634973,0.1669986,119720.0,119710.0,0.2088398]
[1752678635178,0.1717286,119720.0,119710.0,0.2086398]
[1752678635482,0.00473,119720.0,119710.0,0.2086398]
[1752678635784,0.0002,119720.0,119710.0,0.2086398]
[1752678636281,0.1671986,119720.0,119710.0,0.2086398]
[1752678636482,0.0002,119720.0,119710.0,0.2086398]
[1752678636872,0.1672386,119720.0,119710.0,0.2086398]